bitfinex-derivatives/quotes_ETHF0:USTF0_20251003
["timestamp","ask_amount","ask_price","bid_price","bid_amount"]
[1759527819506,3.21041335,4523.3,4523.2,0.7449]
[1759527822118,0.00261335,4523.3,4523.2,0.7449]
[1759527823316,0.00261335,4523.3,4523.2,0.9659]
[1759527825511,3.2078,4524.4,4523.9,0.7249]
[1759527825712,3.2078,4524.4,4524.3,0.7449]
[1759527826514,0.00274849,4524.4,4524.3,0.74774416]
[1759527826713,0.00274849,4524.4,4524.3,5.74774416]
[1759527827114,3.2078,4524.9,4524.8,1.14242]
[1759527827319,3.2078,4524.9,4524.8,1.36342]
[1759527827615,3.7363,4524.9,4524.8,1.36342]
[1759527827809,3.2078,4524.9,4524.8,1.36342]
[1759527828013,3.2095087,4524.9,4524.8,1.36342]
[1759527829320,3.01797084,4524.9,4524.8,6.36342]
[1759527829521,0.0017087,4524.9,4524.8,6.36342]
[1759527833525,0.0017087,4524.9,4524.8,1.36342]
[1759527833730,0.2164087,4524.9,4524.8,1.36342]
[1759527835026,0.0017087,4524.9,4524.8,1.36342]
[1759527837024,0.4292087,4524.9,4524.8,1.14942]
[1759527837226,0.7430087,4524.9,4524.8,1.14942]
[1759527837530,0.7430087,4524.9,4524.8,1.36342]
[1759527839828,0.7430087,4524.9,4524.8,0.9659]
[1759527840426,0.7430087,4524.9,4524.8,0.5483]
[1759527840823,0.7430087,4524.9,4524.7,3.2078]
[1759527841025,0.4275,4524.4,4524.3,0.33014416]
[1759527841331,0.7413,4524.4,4524.3,0.22384416]
[1759527842227,0.7413,4524.4,4524.3,0.74674416]
[1759527844030,0.7413,4524.4,4524.3,0.22384416]
[1759527844428,0.422,4523.0,4522.9,0.3192]
[1759527844628,0.422,4522.8,4522.7,0.3192]
[1759527844831,0.7519,4522.8,4522.7,0.5402]
[1759527845429,0.7519,4522.8,4522.7,0.54217204]
[1759527846833,0.7519,4522.8,4522.7,0.74587204]
[1759527853138,0.7519,4522.8,4522.7,0.95327204]
[1759527859634,0.2049,4522.8,4522.7,0.95327204]
[1759527859838,0.7519,4522.8,4522.7,0.95327204]
[1759527861536,0.2049,4522.8,4522.7,0.95327204]
[1759527861743,0.5348,4522.8,4522.7,0.95327204]
[1759527862042,0.7519,4522.8,4522.7,0.95327204]
[1759527862843,0.422,4522.8,4522.7,0.95327204]
[1759527863840,0.2049,4522.8,4522.7,0.95327204]
[1759527871048,3.2078,4522.9,4522.7,0.95327204]
[1759527871237,3.2078,4522.9,4522.8,0.337]
[1759527871441,3.4287,4522.9,4522.8,0.7793]
[1759527874551,3.7622,4522.9,4522.8,0.7793]
[1759527874751,3.9803,4522.9,4522.8,0.7793]
[1759527874952,3.9803,4522.9,4522.8,0.5578]
[1759527882258,3.9803,4522.9,4522.8,0.7755]
[1759527883753,4.4733594,4522.9,4522.8,0.7755]
[1759527884762,3.9803,4522.9,4522.8,0.7755]
[1759527889971,3.2078,4522.9,4522.8,1.1732]
[1759527890173,3.2078,4522.9,4522.8,2.7641333]
[1759527891266,3.2078,4523.4,4522.8,1.9279333]
[1759527891468,3.2078,4523.4,4523.3,0.7666]
[1759527891668,3.2078,4523.4,4523.3,1.38526]
[1759527891965,3.2078,4524.2,4523.4,0.99413]
[1759527892170,2.89531909,4524.2,4524.1,1.16419]
[1759527892470,2.89531909,4524.2,4524.1,1.38519]
[1759527893872,0.4313087,4524.9,4524.8,0.7666]
[1759527894067,0.7648087,4524.9,4524.8,0.9876]
[1759527894670,0.4313087,4524.9,4524.8,0.9876]
[1759527894865,0.0017087,4524.9,4524.8,0.9876]
[1759527895373,0.0017087,4524.9,4524.8,1.16227611]
[1759527896067,0.0017087,4524.9,4524.8,0.9876]
[1759527898371,0.0017087,4524.9,4524.8,1.16045047]
[1759527901269,0.0017087,4524.9,4524.8,6.16045047]
[1759527901974,3.2078,4525.6,4525.5,0.8934]
[1759527902176,3.2078,4525.6,4525.5,1.1144]
[1759527902370,3.2078,4525.6,4525.5,1.51186]
[1759527902875,3.21030944,4525.6,4525.5,1.51186]
[1759527903575,0.00250944,4525.6,4525.5,1.51186]
[1759527910575,3.2078,4527.2,4527.1,0.7596]
[1759527910769,3.9425,4527.7,4527.6,0.2184]
[1759527910969,3.9425,4527.7,4527.6,0.7596]
[1759527911580,3.94515252,4527.7,4527.6,0.7624305]
[1759527913180,3.62885252,4527.7,4527.6,0.7624305]
[1759527914985,3.94515252,4527.7,4527.6,0.0028305]
[1759527915183,8.94515252,4527.7,4527.6,0.0028305]
[1759527928697,8.95515252,4527.7,4527.6,0.0028305]
[1759527932098,9.44634814,4527.7,4527.6,0.0028305]
[1759527933101,9.44634814,4527.7,4527.6,0.3112305]
[1759527933297,4.44634814,4527.7,4527.6,0.0028305]
[1759527933497,4.84361814,4527.7,4527.6,0.0028305]
[1759527933899,10.06461814,4527.7,4527.6,0.0028305]
[1759527934094,10.06461814,4527.7,4526.5,0.5296]
[1759527934095,0.7508,4526.6,4526.5,0.5296]
[1759527934299,0.7508,4526.6,4526.5,0.3084]
[1759527934995,0.7508,4526.6,4526.5,0.5316528]
[1759527937698,0.7508,4526.6,4526.5,0.3104528]
[1759527937906,0.7508,4526.6,4526.5,0.5316528]
[1759527939305,0.7508,4526.6,4526.5,0.8703528]
[1759527943405,0.4235,4526.6,4526.5,0.8703528]
[1759527945915,0.2041,4526.6,4526.5,0.9593228]
[1759527946609,0.2041,4526.6,4526.5,1.2677228]
[1759527949508,0.4235,4526.6,4526.5,1.0574228]
[1759527949708,0.7508,4526.6,4526.5,0.6600528]
[1759527949906,0.7508,4526.6,4526.5,0.7419528]
[1759527950110,0.7508,4526.6,4526.5,0.8703528]
[1759527952109,3.4119,4527.5,4527.4,0.2212]
[1759527952308,3.9586,4527.5,4527.4,1.1372]
[1759527953512,0.4235,4527.5,4527.4,1.1372]
[1759527954715,0.4235,4527.5,4527.4,0.7399]
[1759527955109,0.2041,4527.5,4527.4,0.7399]
[1759527956318,0.7508,4527.5,4527.4,0.7399]
[1759527956617,0.2041,4527.5,4527.4,0.7399]
[1759527959411,0.7508,4527.5,4527.4,0.7399]
[1759527960616,0.4235,4527.5,4527.4,0.7399]
[1759527964011,0.01265252,4527.7,4527.5,0.128]
[1759527964224,0.01265252,4527.7,4527.6,1.12328]
[1759527972718,0.01265252,4527.7,4527.6,0.726]
[1759527972914,0.21615252,4527.7,4527.6,0.726]
[1759527973110,0.43155252,4527.7,4527.6,0.726]
[1759527973309,0.21615252,4527.7,4527.6,0.726]
[1759527975423,0.01265252,4527.7,4527.6,0.726]
[1759527978126,0.01265252,4527.7,4527.6,1.12328]
[1759527980523,0.75615252,4527.7,4527.6,0.726]
[1759527984429,0.75615252,4527.7,4527.6,0.3071]
[1759527985325,0.7435,4527.6,4527.5,0.221]
[1759527985730,1.24812196,4527.6,4527.5,0.221]
[1759527985929,1.64540196,4527.6,4527.5,0.221]
[1759527987028,1.64540196,4527.6,4527.3,0.3071]
[1759527987223,3.9513,4527.4,4527.3,0.3071]
[1759527987530,0.2171,4526.8,4526.7,0.7664]
[1759527988231,0.7615,4526.8,4526.7,0.7664]
[1759527989028,0.4256,4526.8,4526.7,0.7664]
[1759527999644,0.7341,4526.8,4526.7,0.7664]
[1759528001245,0.4256,4526.8,4526.7,0.7664]
[1759528003246,0.7341,4526.8,4526.7,0.7664]
[1759528006943,1.13145,4526.8,4526.7,0.3311]
[1759528007150,3.9419,4526.8,4526.6,0.3121]
[1759528007543,0.82016,4526.7,4526.6,0.3121]
[1759528007848,0.7313,4526.7,4526.6,0.3121]
[1759528008146,0.7313,4526.7,4526.5,0.3141528]
[1759528009243,0.7313,4526.7,4526.5,0.0020528]
[1759528009450,0.7313,4526.7,4526.5,0.3141528]
[1759528009845,0.7313,4526.7,4526.5,0.0020528]
[1759528010350,0.7313,4526.7,4526.5,0.3141528]
[1759528012949,0.39737,4526.6,4526.5,0.0020528]
[1759528013159,9.03470236,4526.6,4526.5,0.0020528]
[1759528013356,0.7313,4525.8,4525.7,3.5199]
[1759528013853,0.7313,4525.8,4525.7,3.2078]
[1759528014250,0.7313,4525.8,4525.7,3.21058953]
[1759528015155,0.7313,4525.8,4525.7,3.52268953]
[1759528015351,0.7313,4525.8,4525.7,0.31488953]
[1759528016856,3.9391,4525.8,4525.7,0.31488953]
[1759528018853,8.9391,4525.8,4525.7,0.00278953]
[1759528019049,11.76919731,4525.8,4525.0,0.3121]
[1759528019250,0.7313,4525.1,4525.0,0.3121]
[1759528020250,0.7313,4525.1,4525.0,0.31470269]
[1759528020556,0.7313,4525.1,4525.0,0.00260269]
[1759528021247,5.7313,4525.1,4525.0,0.00260269]
[1759528025357,5.9523,4525.1,4525.0,0.00260269]
[1759528029153,0.9523,4525.1,4525.0,0.54640269]
[1759528029548,0.9523,4525.1,4525.0,0.00260269]
[1759528034658,1.3498,4525.1,4525.0,0.00260269]
[1759528035261,4.25850229,4525.1,4525.0,0.00260269]
[1759528036964,0.4353,4524.2,4524.1,0.3246]
[1759528037160,0.3244,4524.1,4523.7,0.3246]
[1759528037361,0.7597,4523.8,4523.7,0.7674]
[1759528037867,0.76156621,4523.8,4523.7,0.77016797]
[1759528038468,0.76156621,4523.8,4523.7,1.16778797]
[1759528039173,0.76156621,4523.8,4523.7,0.77016797]
[1759528040665,0.76156621,4523.8,4523.7,1.16778797]
[1759528040867,0.76156621,4523.8,4523.7,0.77016797]
[1759528041171,0.76156621,4523.8,4523.7,0.00276797]
[1759528041768,0.76156621,4523.8,4523.7,0.32736797]
[1759528042466,0.76156621,4523.8,4523.7,0.00276797]
[1759528044667,0.76156621,4523.8,4523.7,0.32736797]
[1759528044869,0.76156621,4523.8,4523.7,0.00276797]
[1759528045069,3.63066558,4523.8,4523.7,0.00276797]
[1759528045866,3.85166558,4523.8,4523.7,0.00276797]
[1759528047367,3.63066558,4523.8,4523.7,0.77016797]
[1759528047574,3.85166558,4523.8,4523.7,0.77016797]
[1759528047767,3.63066558,4523.8,4523.7,0.77016797]
[1759528047969,3.85166558,4523.8,4523.7,0.55346797]
[1759528048375,3.85166558,4523.8,4523.7,0.77506797]
[1759528049075,3.85166558,4523.8,4523.7,0.33436797]
[1759528049270,3.85166558,4523.8,4523.7,0.55346797]
[1759528052478,3.85166558,4523.8,4523.7,0.33436797]
[1759528052778,3.85166558,4523.8,4523.7,0.55056797]
[1759528056378,3.85166558,4523.8,4523.7,0.77316797]
[1759528064786,3.85166558,4523.8,4523.7,0.55056797]
[1759528068886,3.85166558,4523.8,4523.7,0.00276797]
[1759528069787,3.85166558,4523.8,4523.7,0.32116797]
[1759528070187,4.35292734,4523.8,4523.7,0.32116797]
[1759528071387,4.35292734,4523.8,4523.7,0.00276797]
[1759528079302,4.75053734,4523.8,4523.7,0.00276797]
[1759528095612,4.75053734,4523.8,4523.7,0.32426797]
[1759528095812,4.75053734,4523.8,4523.7,0.00276797]
[1759528101713,0.4227,4522.7,4522.6,0.3215]
[1759528101913,0.7285,4522.7,4522.6,0.5285]
[1759528102411,0.7285,4522.7,4522.6,0.7416]
[1759528102713,0.7285,4522.7,4522.6,0.7432669]
[1759528112220,0.4227,4522.7,4522.6,0.7432669]
[1759528112419,0.7467,4522.7,4522.6,0.7432669]
[1759528114117,0.4227,4522.7,4522.6,0.7432669]
[1759528114324,0.7467,4522.7,4522.6,0.7432669]
[1759528115219,0.221,4522.8,4522.6,0.7432669]
[1759528115422,0.7585,4522.7,4522.6,0.4217669]
[1759528115618,0.221,4522.8,4522.6,0.4217669]
[1759528115818,0.5342,4522.7,4522.6,0.4217669]
[1759528116019,0.5342,4522.7,4522.6,0.7588669]
[1759528116219,0.7585,4522.7,4522.6,0.7588669]
[1759528116421,0.4345,4522.7,4522.6,0.7588669]
[1759528116622,0.7585,4522.7,4522.6,0.7588669]
[1759528116925,0.4345,4522.7,4522.6,0.7588669]
[1759528117315,0.221,4522.8,4522.6,0.7588669]
[1759528117519,0.4345,4522.7,4522.6,0.4217669]
[1759528117716,0.7585,4522.7,4522.6,0.4217669]
[1759528117919,0.4345,4522.7,4522.6,0.7588669]
[1759528118416,0.2102,4522.7,4522.6,0.4217669]
[1759528118824,0.221,4522.8,4522.6,0.4217669]
[1759528119022,0.2102,4522.7,4522.6,0.4217669]
[1759528119216,3.2078,4523.0,4522.6,0.4217669]
[1759528119417,0.221,4522.9,4522.6,0.4217669]
[1759528119623,3.418,4523.0,4522.9,0.767]
[1759528119823,3.639,4523.0,4522.9,0.767]
[1759528120025,6.54362651,4523.0,4522.9,0.767]
[1759528120424,7.09192651,4523.0,4522.9,0.767]
[1759528120826,7.59229339,4523.0,4522.9,0.767]
[1759528121929,7.04729339,4523.0,4522.9,0.767]
[1759528122129,7.09192651,4523.0,4522.9,0.767]
[1759528122330,6.76792651,4523.0,4522.9,0.767]
[1759528122523,6.87092651,4523.0,4522.9,0.767]
[1759528122730,7.09192651,4523.0,4522.9,0.767]
[1759528123231,6.87092651,4523.0,4522.9,0.767]
[1759528123425,7.09192651,4523.0,4522.9,0.767]
[1759528123626,6.87092651,4523.0,4522.9,0.767]
[1759528123827,7.09192651,4523.0,4522.9,0.767]
[1759528124334,7.59233747,4523.0,4522.9,0.767]
[1759528124632,7.37129846,4523.0,4522.9,0.767]
[1759528124826,7.59229846,4523.0,4522.9,0.767]
[1759528126739,7.37129846,4523.0,4522.9,0.767]
[1759528126930,7.59229846,4523.0,4522.9,0.767]
[1759528127131,7.37129846,4523.0,4522.9,0.767]
[1759528127331,7.59229846,4523.0,4522.9,0.767]
[1759528127737,7.37129846,4523.0,4522.9,0.767]
[1759528128038,7.59229846,4523.0,4522.9,0.767]
[1759528129233,7.37129846,4523.0,4522.9,0.767]
[1759528129433,7.98997846,4523.0,4522.9,0.767]
[1759528129840,7.76897846,4523.0,4522.9,0.767]
[1759528130045,7.59229846,4523.0,4522.9,0.767]
[1759528131843,7.37129846,4523.0,4522.9,0.5448]
[1759528132036,7.59229846,4523.0,4522.9,0.5448]
[1759528132438,4.38449846,4523.0,4522.9,0.5448]
[1759528132640,7.59229846,4523.0,4522.9,0.5448]
[1759528132943,7.37129846,4523.0,4522.9,0.5448]
[1759528133243,7.59229846,4523.0,4522.9,0.767]
[1759528133946,7.37129846,4523.0,4522.9,0.767]
[1759528134147,7.98997846,4523.0,4522.9,0.3371]
[1759528134746,7.98997846,4523.0,4522.9,0.5448]
[1759528134947,7.76897846,4523.0,4522.9,0.5448]
[1759528135147,7.98997846,4523.0,4522.9,0.5448]
[1759528135347,7.37129846,4523.0,4522.9,0.5448]
[1759528135543,7.59229846,4523.0,4522.9,0.5448]
[1759528135745,7.98997846,4523.0,4522.6,0.0016669]
[1759528135939,0.7585,4522.7,4522.6,0.5464669]
[1759528136145,0.9795,4522.7,4522.6,0.5464669]
[1759528136636,0.9795,4522.7,4522.6,0.7686669]
[1759528137647,0.7585,4522.7,4522.6,0.7686669]
[1759528137849,0.9795,4522.7,4522.6,0.7686669]
[1759528138049,0.7585,4522.7,4522.6,0.7686669]
[1759528138249,0.9795,4522.7,4522.6,0.7686669]
[1759528138647,0.4345,4522.7,4522.6,0.7686669]
[1759528138849,0.9795,4522.7,4522.6,0.7686669]
[1759528139347,0.9795,4522.7,4522.6,0.3387669]
[1759528139748,0.9795,4522.7,4522.6,0.5464669]
[1759528141152,0.7585,4522.7,4522.6,0.5464669]
[1759528141349,0.9795,4522.7,4522.6,0.5464669]
[1759528141543,0.9795,4522.7,4522.6,0.3387669]
[1759528141744,0.221,4522.7,4522.6,0.7686669]
[1759528141950,0.9795,4522.7,4522.6,0.7686669]
[1759528142151,0.7585,4522.7,4522.6,0.7686669]
[1759528142454,0.9795,4522.7,4522.6,0.7686669]
[1759528144255,1.37721,4522.7,4522.6,0.7686669]
[1759528146755,1.37721,4522.7,4522.6,0.3387669]
[1759528146960,1.37721,4522.7,4522.6,0.0016669]
[1759528149363,1.37721,4522.7,4522.0,20.1256]
[1759528149557,1.13146,4522.1,4522.0,6.05643929]
[1759528149860,0.39781,4521.6,4521.5,0.1226]
[1759528150159,7.20675878,4521.6,4521.5,0.3355]
[1759528150459,7.20675878,4521.6,4521.5,0.33756932]
[1759528151261,0.39785,4521.1,4521.0,0.5602]
[1759528151462,3.60565,4521.1,4521.0,0.5602]
[1759528151762,6.48081265,4521.1,4521.0,0.5602]
[1759528151962,3.82665,4521.1,4521.0,0.8865]
[1759528152159,3.60565,4521.1,4521.0,0.88932619]
[1759528152359,3.82665,4521.1,4521.0,0.88932619]
[1759528166779,3.82665,4521.1,4521.0,0.45172619]
[1759528168374,3.82665,4521.1,4521.0,0.66462619]
[1759528170578,3.82665,4521.1,4521.0,0.88902619]
[1759528172183,6.65487379,4521.1,4521.0,0.88902619]
[1759528173386,6.43387379,4521.1,4521.0,0.31548619]
[1759528173570,6.65487379,4521.1,4521.0,0.44768619]
[1759528174384,6.65487379,4521.1,4521.0,0.45037918]
[1759528174586,6.65487379,4521.1,4521.0,0.22597918]
[1759528174787,7.14967106,4521.1,4521.0,9.18e-06]
[1759528175485,0.39789,4520.6,4520.5,0.17133]
[1759528175781,0.39794,4520.1,4520.0,1e-05]
[1759528176080,0.39794,4520.1,4520.0,0.2198497]
[1759528176081,6.65534535,4520.1,4520.0,0.2198497]
[1759528176389,6.65534535,4520.1,4520.0,0.4358497]
[1759528177479,6.43434535,4520.1,4520.0,0.4358497]
[1759528177678,6.43434535,4520.1,4520.0,0.7649497]
[1759528177879,6.65534535,4520.1,4520.0,0.7649497]
[1759528178882,6.43434535,4520.1,4520.0,0.7649497]
[1759528179083,6.65534535,4520.1,4520.0,0.7649497]
[1759528179478,7.15172146,4520.1,4520.0,0.7649497]
[1759528181185,7.15172146,4520.1,4520.0,0.3315497]
[1759528183791,7.15172146,4520.1,4520.0,0.5489497]
[1759528184189,7.15161678,4520.1,4520.0,0.5489497]
[1759528186985,0.39798,4519.6,4519.5,0.1226]
[1759528187186,0.39798,4519.6,4519.5,0.556]
[1759528187187,3.82678,4519.6,4519.5,0.556]
[1759528187386,6.74566665,4519.6,4519.5,0.556]
[1759528187991,6.74566665,4519.6,4519.5,0.55878782]
[1759528188889,6.74566665,4519.6,4519.5,0.88788782]
[1759528203398,7.24282808,4519.6,4519.5,0.88788782]
[1759528204198,7.24282808,4519.6,4519.5,0.67188782]
[1759528233723,7.24282808,4519.6,4519.5,0.45448782]
[1759528236623,0.39803,4519.1,4519.0,0.1322]
[1759528236829,4.32399143,4519.1,4519.0,0.1322]
[1759528237022,7.17614462,4519.1,4519.0,0.1322]
[1759528237523,12.17614462,4519.1,4519.0,0.1322]
[1759528237730,12.17614462,4519.1,4519.0,0.13446282]
[1759528238229,0.39811,4518.1,4518.0,0.1322]
[1759528238439,3.82691,4518.1,4518.0,0.1322]
[1759528238732,7.2624918,4518.1,4518.0,0.1322]
[1759528239232,0.39816,4517.6,4517.5,0.1288]
[1759528239429,3.82696,4517.6,4517.5,0.13039237]
[1759528239727,7.16210576,4517.6,4517.5,0.13039237]
[1759528240333,7.15610486,4517.6,4517.5,0.13039237]
[1759528240932,6.93510486,4517.6,4517.5,0.13039237]
[1759528241131,0.3982,4517.1,4517.0,0.1288]
[1759528241330,4.178,4517.1,4517.0,0.5468]
[1759528241633,7.0794493,4517.1,4517.0,0.5468]
[1759528241832,7.0794493,4517.1,4517.0,0.8748]
[1759528242031,7.1891493,4517.1,4517.0,0.4568]
[1759528242332,7.19134536,4517.1,4517.0,0.4583674]
[1759528242527,7.19134536,4517.1,4517.0,0.3295674]
[1759528242932,7.19134536,4517.1,4517.0,0.0015674]
[1759528244437,7.19134536,4517.1,4517.0,0.3295674]
[1759528245336,7.19134536,4517.1,4517.0,0.0015674]
[1759528245733,7.08164536,4517.1,4517.0,0.6646674]
[1759528246338,7.08164536,4517.1,4517.0,0.8763674]
[1759528246932,6.86064536,4517.1,4517.0,0.8763674]
[1759528247539,7.08164536,4517.1,4517.0,0.8763674]
[1759528249238,7.19134536,4517.1,4517.0,0.4583674]
[1759528249440,7.08164536,4517.1,4517.0,0.6646674]
[1759528249842,7.08164536,4517.1,4517.0,0.8763674]
[1759528250435,6.86064536,4517.1,4517.0,0.8763674]
[1759528250833,7.08164536,4517.1,4517.0,0.8763674]
[1759528251336,6.86064536,4517.1,4517.0,0.8763674]
[1759528251540,7.08164536,4517.1,4517.0,0.8763674]
[1759528252135,6.68514536,4517.1,4517.0,0.8763674]
[1759528252341,6.90614536,4517.1,4517.0,0.8763674]
[1759528253841,7.08164536,4517.1,4517.0,0.8763674]
[1759528254731,6.86064536,4517.1,4517.0,0.8763674]
[1759528255236,7.08164536,4517.1,4517.0,0.8763674]
[1759528255737,6.86064536,4517.1,4517.0,0.8763674]
[1759528255938,7.08164536,4517.1,4517.0,0.8763674]
[1759528256138,6.86064536,4517.1,4517.0,0.8763674]
[1759528256340,7.08164536,4517.1,4517.0,0.8763674]
[1759528256839,6.86064536,4517.1,4517.0,0.8763674]
[1759528257040,7.08164536,4517.1,4517.0,0.8763674]
[1759528257743,6.28694536,4517.1,4517.0,0.8763674]
[1759528257933,6.50964536,4517.1,4517.0,0.8763674]
[1759528258337,6.73064536,4517.1,4517.0,0.8763674]
[1759528260141,6.90614536,4517.1,4517.0,0.8763674]
[1759528260541,6.68514536,4517.1,4517.0,0.8763674]
[1759528260737,6.28694536,4517.1,4517.0,0.8763674]
[1759528260940,6.50964536,4517.1,4517.0,0.8763674]
[1759528261145,6.90614536,4517.1,4517.0,0.8763674]
[1759528261346,6.50794536,4517.1,4517.0,0.8763674]
[1759528261842,6.28694536,4517.1,4517.0,0.8763674]
[1759528262046,3.43099606,4517.1,4517.0,0.8763674]
[1759528262549,3.60639606,4517.1,4517.0,0.8763674]
[1759528263237,3.20999606,4517.1,4517.0,0.8763674]
[1759528264042,3.43099606,4517.1,4517.0,0.8763674]
[1759528265144,3.20999606,4517.1,4517.0,0.8763674]
[1759528265449,3.43099606,4517.1,4517.0,0.8763674]
[1759528266038,3.20999606,4517.1,4517.0,0.8763674]
[1759528266238,3.43199606,4517.1,4517.0,0.8763674]
[1759528266739,3.60739606,4517.1,4517.0,0.8763674]
[1759528267148,3.38539606,4517.1,4517.0,0.8763674]
[1759528267346,3.60739606,4517.1,4517.0,0.8763674]
[1759528268152,3.38539606,4517.1,4517.0,0.8763674]
[1759528268446,4.10024478,4517.1,4517.0,0.8763674]
[1759528268641,3.87824478,4517.1,4517.0,0.8763674]
[1759528268844,3.92484478,4517.1,4517.0,0.8763674]
[1759528269254,3.70284478,4517.1,4517.0,0.8763674]
[1759528269547,1.68636887,4518.5,4517.5,0.217]
[1759528269548,3.2078,4517.6,4517.5,0.217]
[1759528269741,2.09943609,4519.0,4518.3,0.763]
[1759528269742,3.5291,4518.4,4518.3,0.763]
[1759528269945,0.71937,4518.6,4518.4,0.3292]
[1759528270147,0.2193,4518.6,4518.5,0.763]
[1759528270348,0.4413,4518.6,4518.5,0.8944]
[1759528270650,0.22384204,4518.6,4518.5,0.8944]
[1759528270844,0.00184204,4518.6,4518.5,5.8944]
[1759528276350,0.00184204,4518.6,4518.5,6.1154]
[1759528277152,0.00184204,4518.6,4518.5,6.51348]
[1759528277357,0.00184204,4518.6,4518.5,6.1154]
[1759528277757,0.7193,4519.4,4519.3,0.763]
[1759528278158,0.398,4519.4,4519.3,0.763]
[1759528278761,0.40072146,4519.4,4519.3,0.763]
[1759528287479,3.7386,4520.0,4519.9,0.751]
[1759528287681,3.7386,4520.0,4519.9,0.972]
[1759528287881,4.13655,4520.0,4519.9,0.972]
[1759528288481,4.13873561,4520.0,4519.9,0.972]
[1759528293387,4.36013561,4520.0,4519.9,0.972]
[1759528293778,4.48653561,4520.0,4519.9,0.221]
[1759528294484,4.48653561,4520.0,4519.9,0.4331]
[1759528294680,4.48653561,4520.0,4519.9,0.7422]
[1759528294881,4.48653561,4520.0,4519.9,0.4331]
[1759528295089,4.48653561,4520.0,4519.9,0.221]
[1759528296687,4.48653561,4520.0,4519.9,0.7422]
[1759528296990,4.48653561,4520.0,4519.9,0.4331]
[1759528297588,4.48653561,4520.0,4519.9,0.221]
[1759528298186,0.94068,4518.5,4518.4,3.729]
[1759528298394,1.14463,4517.9,4517.8,3.4199]
[1759528298594,1.14463,4517.9,4517.8,3.2078]
[1759528302595,1.36563,4517.9,4517.8,3.2078]
[1759528305197,6.36563,4517.9,4517.8,3.2078]
[1759528307394,1.36563,4517.9,4517.8,3.2078]
[1759528312290,0.39818,4517.3,4517.2,3.4288]
[1759528312495,1.14468,4517.3,4517.2,4.1737]
[1759528313101,0.93598,4517.3,4517.2,4.1737]
[1759528313601,0.39818,4517.3,4517.2,4.1737]
[1759528318401,1.1447,4517.1,4517.0,0.0015674]
[1759528318604,1.3657,4517.1,4517.0,0.0015674]
[1759528321599,6.3657,4517.1,4517.0,0.0015674]
[1759528321907,1.3657,4517.1,4517.0,0.0015674]
[1759528322907,1.3657,4517.1,4517.0,0.7432674]
[1759528323510,1.1447,4517.1,4517.0,0.7432674]
[1759528323711,1.3657,4517.1,4517.0,0.7432674]
[1759528323903,1.1447,4517.1,4517.0,0.7432674]
[1759528324103,0.7588,4517.1,4517.0,0.7432674]
[1759528324910,0.9799,4517.1,4517.0,0.7432674]
[1759528325114,0.5378,4517.1,4517.0,0.7432674]
[1759528325307,0.3982,4517.2,4517.1,0.5336]
[1759528325516,0.39819,4517.3,4517.2,0.3309]
[1759528325713,0.39818,4517.4,4517.2,0.7417]
[1759528325909,0.39818,4517.4,4517.3,0.3309]
[1759528326213,0.39818,4517.4,4517.3,0.7417]
[1759528326406,0.3361,4517.8,4517.3,0.7417]
[1759528326604,0.39813,4517.9,4517.8,0.7417]
[1759528328217,0.222,4518.3,4517.8,0.4108]
[1759528328408,0.9529,4518.2,4518.1,0.7417]
[1759528331306,0.6168,4518.2,4518.1,0.7417]
[1759528331508,0.3981,4518.3,4518.2,0.5336]
[1759528331708,0.3981,4518.3,4518.2,0.7417]
[1759528331906,0.3361,4518.4,4518.2,0.7417]
[1759528332108,0.7759,4518.9,4518.8,0.5336]
[1759528332309,0.7759,4518.9,4518.8,0.7417]
[1759528332511,0.9979,4518.9,4518.8,0.7417]
[1759528332706,1.17394,4518.9,4518.8,0.7417]
[1759528333015,0.95284,4518.9,4518.8,0.7417]
[1759528335112,1.17394,4518.9,4518.8,0.7417]
[1759528335611,1.17401,4518.1,4518.0,3.2078]
[1759528335814,0.99535,4517.9,4517.4,3.2078]
[1759528336018,1.30297,4517.5,4517.4,3.4105]
[1759528336517,1.30297,4517.5,4517.4,3.2078]
[1759528336816,1.30297,4517.5,4517.0,0.2235674]
[1759528336817,1.1741,4517.1,4517.0,0.2235674]
[1759528341319,0.7343,4517.1,4517.0,5.7893674]
[1759528343114,0.3982,4517.1,4517.0,5.7893674]
[1759528343914,0.7343,4517.1,4517.0,5.7893674]
[1759528346715,0.7443,4517.1,4517.0,5.7893674]
[1759528347821,0.963,4517.1,4517.0,0.7893674]
[1759528348028,1.1783,4517.1,4517.0,0.6343674]
[1759528349413,1.1783,4517.1,4517.0,0.7898674]
[1759528349617,0.963,4517.1,4517.0,0.7898674]
[1759528350224,0.4082,4517.1,4517.0,0.7898674]
[1759528351220,0.7139,4517.1,4517.0,0.7898674]
[1759528351926,0.4082,4517.1,4517.0,0.7898674]
[1759528352623,0.325,4517.1,4517.0,0.7898674]
[1759528353021,0.01,4517.1,4517.0,0.7898674]
[1759528353527,0.325,4517.1,4517.0,0.7898674]
[1759528353927,0.7232,4517.1,4517.0,0.7898674]
[1759528358729,0.4082,4517.1,4517.0,0.7898674]
[1759528359626,0.4082,4517.1,4517.0,1.1880774]
[1759528362733,0.4082,4517.1,4517.0,2.78069332]
[1759528363228,0.1289,4517.5,4517.0,2.38248332]
[1759528363440,0.315,4517.4,4517.3,0.98118]
[1759528363733,0.39817,4517.5,4517.3,4.41098]
[1759528363930,0.9952,4518.6,4517.8,0.4271]
[1759528364233,0.315,4518.0,4517.9,4.41093]
[1759528367135,0.71309,4518.4,4518.3,0.583]
[1759528367332,0.71309,4518.4,4518.3,0.805]
[1759528368529,0.315,4518.4,4518.3,0.805]
[1759528369733,0.315,4518.4,4518.3,1.2031]
[1759528370832,0.5319,4518.4,4518.3,1.2031]
[1759528371038,0.5319,4518.4,4518.3,1.37730665]
[1759528371334,0.315,4518.4,4518.3,1.37730665]
[1759528373041,1.11986561,4520.0,4518.9,0.39804]
[1759528373242,0.96009,4519.5,4519.4,3.2078]
[1759528373536,0.96009,4519.5,4519.4,3.4281]
[1759528373741,0.96009,4519.5,4519.4,3.7436]
[1759528374041,0.96009,4519.5,4519.4,3.9504]
[1759528374441,0.83729,4519.5,4519.4,3.9504]